Cogmind - Beta 13 @@@ ROGUE MODE // 2024.03.12 @ 10:35:24 Player: puppuppit Result: Destroyed by P-80 Master with Gamma Rifle Performance ------------- Evolutions (8) 4000 Regions Visited (28) 5600 Robots Destroyed (351) 1755 Value Destroyed (11560) 11560 Prototype IDs (81) 1620 Alien Tech Used (5) 1000 Bonus (14132) 14132 TOTAL SCORE: 39667 Bonus ------- Triggered High Security 1000 Triggered Max Security 2000 High Alert Combat Kills 4661 Follower Combat Kills 4116 Entered Garrisons 400 Aligned with FarCom 300 Met Imprinter 300 Acquired ECA 300 Built Enhanced Grunts 300 Met R17 at Cetus 500 Met R17 at Research 2000 Friendly Fire -1745 Cogmind --------- Core Integrity 0/1450 Matter 39/300 Energy 2/100 System Corruption 4% Temperature Cool (0) Movement Hovering (56) Location -2/Quarantine Parts ------- > --- POWER (1) -------- (None) > --- PROPULSION (5) --- Gyrokinetic Inverter Gyrokinetic Inverter Improved Antigrav System Improved Antigrav System Combat Linear Gravjet > --- UTILITY (15) ----- Advanced Power Amplifier Advanced Signal Interpreter Experimental Signal Interpreter Experimental Target Analyzer Experimental Transmission Jammer Advanced Phase Shifter Improved Medium Armor Plating Advanced Hacking Suite Advanced System Shield Advanced System Shield > --- WEAPON (2) ------- (None) > --- INVENTORY (5) ---- Combat Linear Gravjet Faulty Advanced Quantum Shading Machine Subatomic Replicator GAL Module Peak State ------------ > --- POWER ------------ Micro Antimatter Reactor > --- PROPULSION ------- Improved Diametric Drive Impulse Thruster Array Impulse Thruster Array > --- UTILITY ---------- Enhanced Optical Array Advanced Signal Interpreter Experimental Signal Interpreter Advanced Target Analyzer Experimental Target Analyzer Experimental Core Analyzer Advanced Transmission Jammer Improved Light Armor Plating Advanced Hacking Suite Advanced Corruption Screen Advanced Corruption Screen > --- WEAPON ----------- Enhanced Quantum Rifle Hellfire Missile Launcher > --- INVENTORY -------- Particle Reactor Dimensional Node Initializer Null Cannon Hellfire Missile Launcher GAL Module [Rating: 148] Favorites ----------- Power Light Angular Momentum Engine Engine Light Angular Momentum Engine Power Core Light Fission Core Reactor Light Antimatter Reactor Propulsion Antigrav System Leg Carbon-fiber Leg Wheel Wheel Hover Unit Antigrav System Flight Unit Xenon Bombardment Thruster Utility Advanced Signal Interpreter Device Power Amplifier Storage Small Storage Unit Processor Advanced Signal Interpreter Hackware Hacking Suite Protection Centrium Medium Armor Plating Weapon Precision Assault Rifle Energy Gun Advanced Variable Charge Gun Energy Cannon Beam Cannon Ballistic Gun Precision Assault Rifle Ballistic Cannon Gauss Cannon Launcher Heavy Rocket Launcher Special Melee Weapon Advanced Datajack Build | -11 -10 -10 -9 -9 -9 -8 -8 -7 -7 -7 -7 -6 -6 -6 -6 -5 -5 -5 -5 -4 -4 -4 -4 -3 -3 -3 -2 -2 ------- Run | Yrd Mat Min Mat Min Exi Min Mat Fac Low Low Zio Pro Fac Gar Fac Fac Gar Ext Cet Fac Upp Upp Zhi Pro Res Tes Res Qua Slots Evolved 16 | . . . 2 . . . 2 2 . . . . 2 . . 2 . . . 2 . . . . 2 . 2 . Power . | . . . . . . . . . . . . . . . . . . . . . . . . . . . . . Propulsion 3 | . . . 2 . . . . . . . . . . . . . . . . 1 . . . . . . . . Utility 13 | . . . . . . . 2 2 . . . . 2 . . 2 . . . 1 . . . . 2 . 2 . Weapon . | . . . . . . . . . . . . . . . . . . . . . . . . . . . . . Parts Attached 466 | 8 15 12 3 3 1 1 23 54 2 4 4 3 43 4 31 11 28 24 19 33 9 5 5 . 43 18 48 12 Power 68 | 1 6 1 1 . . . 3 8 1 . . . 6 . 1 . 6 5 3 5 . 1 1 . 7 . 12 . Engine 22 | 1 6 1 1 . . . 2 1 1 . . . 5 . . . 3 . . . . . . . 1 . . . Core 20 | . . . . . . . 1 7 . . . . . . 1 . 3 4 1 2 . 1 . . . . . . Reactor 26 | . . . . . . . . . . . . . 1 . . . . 1 2 3 . . 1 . 6 . 12 . Propulsion 120 | 3 5 2 . 1 . 1 11 9 1 . . 3 9 . 8 3 2 7 7 10 3 1 . . 18 5 7 4 Treads . | . . . . . . . . . . . . . . . . . . . . . . . . . . . . . Leg 15 | . . . . 1 . . . . . . . 2 . . . . 2 4 6 . . . . . . . . . Wheel 5 | 3 2 . . . . . . . . . . . . . . . . . . . . . . . . . . . Hover 61 | . 3 2 . . . . 9 5 . . . . 8 . 8 3 . 3 1 1 . . . . 10 . 4 4 Flight 39 | . . . . . . 1 2 4 1 . . 1 1 . . . . . . 9 3 1 . . 8 5 3 . Utility 172 | 2 1 3 . . 1 . 6 24 . 3 4 . 18 3 14 6 8 8 6 13 2 3 3 . 15 6 17 6 Device 102 | 1 . . . . . . 1 19 . 3 4 . 12 3 7 5 5 2 1 10 1 2 1 . 8 1 12 4 Storage 5 | 1 . 2 . . . . 2 . . . . . . . . . . . . . . . . . . . . . Processor 31 | . . . . . . . 2 3 . . . . 3 . 1 . 2 4 . 2 1 . . . 6 4 3 . Hackware 9 | . . . . . . . . . . . . . 1 . 1 . . . . 1 . 1 1 . 1 1 1 1 Protection 25 | . 1 1 . . 1 . 1 2 . . . . 2 . 5 1 1 2 5 . . . 1 . . . 1 1 Artifact . | . . . . . . . . . . . . . . . . . . . . . . . . . . . . . Weapon 106 | 2 3 6 2 2 . . 3 13 . 1 . . 10 1 8 2 12 4 3 5 4 . 1 . 3 7 12 2 Energy Gun 14 | . . . . . . . . . . . . . . . 2 1 2 . 2 2 2 . . . 1 . 2 . Energy Cannon 19 | . 1 2 . . . . . . . . . . 1 . . . . . . 1 1 . 1 . 1 6 4 1 Ballistic Gun 39 | 2 2 . 2 . . . 2 7 . 1 . . 5 . 4 1 6 3 1 . 1 . . . 1 1 . . Ballistic Cannon 3 | . . . . 1 . . 1 1 . . . . . . . . . . . . . . . . . . . . Launcher 29 | . . 4 . 1 . . . 5 . . . . 4 1 2 . 4 1 . . . . . . . . 6 1 Special Weapon . | . . . . . . . . . . . . . . . . . . . . . . . . . . . . . Impact Weapon . | . . . . . . . . . . . . . . . . . . . . . . . . . . . . . Slashing Weapon . | . . . . . . . . . . . . . . . . . . . . . . . . . . . . . Piercing Weapon . | . . . . . . . . . . . . . . . . . . . . . . . . . . . . . Special Melee Weapon 2 | . . . . . . . . . . . . . . . . . . . . 2 . . . . . . . . Unidentified Prototypes 34 | . . . . . . . 1 3 . . . . 4 . 2 . . . 4 1 . . 4 1 2 4 4 4 Parts Lost 138 | . 4 3 7 . . . 3 14 . . . 1 5 10 . 1 3 4 5 14 . 3 . . 25 14 15 7 Power 15 | . 1 1 1 . . . . 1 . . . . 1 . . . . . . 5 . . . . 1 1 2 1 Propulsion 62 | . 1 2 2 . . . 2 8 . . . 1 1 2 . 1 2 1 2 6 . 1 . . 16 8 4 2 Utility 40 | . 1 . . . . . . 3 . . . . 3 6 . . . 2 1 3 . 1 . . 5 5 8 2 Weapon 21 | . 1 . 4 . . . 1 2 . . . . . 2 . . 1 1 2 . . 1 . . 3 . 1 2 Highest Loss Streak 10 | . 2 3 4 . . . 2 6 . . . 1 2 9 . 1 1 1 3 6 . 2 . . 9 10 3 4 To Critical Strikes 5 | . . . 1 . . . . . . . . . . . . . 1 . 1 . . . . . 1 . . 1 Average Slot Usage (%) 85 | . 90 93 64 35 55 60 65 89 89 92 92 93 87 72 91 85 92 99 99 88 87 84 91 91 87 77 63 55 Engine 3 | . 13 12 7 . . . 2 2 4 7 7 7 5 4 1 . . 2 . . . . . . . . . . Core 1 | . . . . . . . . 3 2 . . . . . 4 5 4 2 2 1 . . 1 . . . . . Leg 2 | . . . . 4 11 11 4 . . . . 3 . . . . 1 8 10 6 . . . . . . . . Hover 10 | . 7 26 17 . . . 14 15 . . . . 13 10 25 23 17 13 10 4 . . . . 12 2 1 16 Flight 6 | . . . . . . 5 5 6 20 23 23 20 2 . . . . . . 9 21 18 21 21 5 12 9 . Device 13 | . 1 . . . . . 1 15 15 16 23 23 25 15 17 19 20 11 5 9 20 18 15 10 14 9 8 5 Storage 4 | . 14 14 11 11 11 11 9 7 7 7 7 7 6 4 . . . . . . . . . . . . . . Processor 18 | . . . . . . . 2 15 23 21 15 15 14 20 20 17 22 36 33 27 26 26 26 23 22 31 26 16 Hackware 3 | . . . . . . . . . . . . . . 5 2 5 5 5 5 7 10 10 13 15 17 14 4 9 Protection 5 | . 4 12 11 11 11 11 10 5 . . . . 2 . 6 5 7 2 12 8 . . . 5 3 . 1 1 Energy Gun 1 | . . . . . . . . . . . . . . . 4 . 2 . 1 3 6 9 5 5 2 . 1 . Ballistic Gun 6 | . 25 12 7 . . . 5 6 15 15 15 15 6 4 3 . 1 10 9 1 2 . . . . . . . Launcher 2 | . . 5 4 4 11 11 4 6 . . . . 5 4 2 4 3 . . . . . . . . . 2 . Naked Turns . | . . . . . . . . . . . . . . . . . . . . . . . . . . . . . Heaviest Build 62 | 13 14 17 17 20 20 20 37 43 22 33 23 23 43 26 42 37 44 28 52 62 15 19 30 30 38 26 48 29 Greatest Support 76 | 26 20 18 18 20 20 20 43 45 25 25 25 39 49 30 39 40 40 40 76 56 22 33 33 33 58 37 44 60 Greatest Overweight (x) 4 | . . 1 1 1 . . 2 1 . 1 . 1 2 . 1 1 2 . 1 1 . . . . 2 . 1 4 Average Overweight (x) . | . . . . . . . . . . . . . . . . . . . . . . . . . . . . . Largest Inventory Capacity 8 | 8 8 8 8 8 8 8 8 8 8 8 8 8 8 8 5 5 5 5 5 5 5 5 5 5 5 5 5 5 Average Capacity 6 | 7 8 8 8 8 8 8 8 8 8 8 8 8 8 7 5 5 5 5 5 5 5 5 5 5 5 5 5 5 Most Carried 8 | 4 8 8 8 8 8 8 8 8 8 8 8 8 8 8 5 5 5 5 5 5 5 5 5 5 5 5 5 5 Average Carried 6 | 1 6 7 6 7 7 8 7 7 7 7 7 8 7 6 4 4 4 4 4 4 4 4 4 4 4 4 4 3 Final Capacity 8 | 8 8 8 8 8 8 8 8 8 8 8 8 8 8 5 5 5 5 5 5 5 5 5 5 5 5 5 5 5 Final Carried 8 | 4 8 8 5 8 8 8 8 7 8 8 8 8 7 4 5 4 5 5 5 5 5 4 5 4 5 5 3 4 Class Distribution -------------------- 39% | Mutant 23% | Scavenger-Mutant 7% | Hacker-Mutant 6% | Scout 6% | Sprinter 4% | Commander-Sprinter Dominant Class ---------------- Mutant | -10/Materials Scavenger-Mutant | -10/Mines Scavenger-Mutant | -9/Materials Mutant | -9/Mines Mutant | -9/Exiles Mutant | -8/Mines Mutant | -8/Materials Mutant | -7/Factory Sprinter | -7/Lower Caves Sprinter | -7/Lower Caves Commander-Sprinter | -7/Zion Sprinter | -6/Proximity Caves Mutant | -6/Factory Mutant | -6/Garrison Mutant | -6/Factory Scout | -5/Factory Scavenger-Mutant | -5/Garrison Scavenger-Mutant | -5/Extension Scavenger-Mutant | -5/Cetus Scavenger-Mutant | -4/Factory Scavenger-Mutant | -4/Upper Caves Hacker-Mutant | -4/Upper Caves Hacker-Sprinter | -4/Zhirov Hacker-Sprinter | -3/Proximity Caves Hacker-Mutant | -3/Research Hacker-Sprinter | -3/Testing Mutant | -2/Research Hacker-Mutant | -2/Quarantine Resources | -11 -10 -10 -9 -9 -9 -8 -8 -7 -7 -7 -7 -6 -6 -6 -6 -5 -5 -5 -5 -4 -4 -4 -4 -3 -3 -3 -2 -2 ----------- Run | Yrd Mat Min Mat Min Exi Min Mat Fac Low Low Zio Pro Fac Gar Fac Fac Gar Ext Cet Fac Upp Upp Zhi Pro Res Tes Res Qua Matter Collected 10412 | 328 959 596 142 146 . 24 504 1581 112 118 31 207 977 142 224 80 686 862 447 275 30 55 . . 577 87 1141 81 Remotely 3208 | . . . . . . . . 1333 . 10 31 207 968 20 . . . . . 20 . . . . . . 619 . Salvage Created 11110 | 188 625 1011 400 67 . . 206 1650 52 40 . 88 1279 135 359 74 318 1514 377 995 . . . . 1089 87 556 . Parts 622 | 22 50 74 35 1 . . 17 93 1 1 . 9 67 2 19 . 15 69 8 61 . . . . 40 1 37 . Haulers Intercepted 13 | . 1 . . . . . 2 3 . . . . 2 . 1 1 . . . . . . . . 3 . . . Recyclers Shooed 27 | . 5 6 2 . . . . 2 . . . . 4 . 3 . . 1 . 1 . . . . 2 . 1 . Parts Field Recycled 88 | . . . . . . . . 26 . 4 . . 14 . 11 10 23 . . . . . . . . . . . Retrieved Matter 1543 | . . . . . . . . 483 . 33 . . 292 . 247 258 230 . . . . . . . . . . . Parts Self-Destructed 32 | . . . . . . . . . . 1 . 31 . . . . . . . . . . . . . . . . Prevented . | . . . . . . . . . . . . . . . . . . . . . . . . . . . . . Kills | -11 -10 -10 -9 -9 -9 -8 -8 -7 -7 -7 -7 -6 -6 -6 -6 -5 -5 -5 -5 -4 -4 -4 -4 -3 -3 -3 -2 -2 ------- Run | Yrd Mat Min Mat Min Exi Min Mat Fac Low Low Zio Pro Fac Gar Fac Fac Gar Ext Cet Fac Upp Upp Zhi Pro Res Tes Res Qua Combat Hostiles Destroyed 194 | . 9 11 14 . . . 6 37 1 . . 2 22 . 7 . 15 13 6 20 . . . . 9 4 18 . Guns 57 | . 7 . 5 . . . 3 5 1 . . 2 5 . 1 . 1 13 6 5 . . . . 3 . . . Cannons 22 | . 2 1 1 . . . 1 2 . . . . . . . . . . . 5 . . . . 5 4 1 . AOE 114 | . . 10 8 . . . 2 30 . . . . 17 . 6 . 14 . . 10 . . . . . . 17 . Classes Destroyed 24 | 2 7 1 . . . . 2 7 . 1 . . . . . . . 1 . . . . . . 2 1 . . Worker 46 | . 5 14 . 1 . . 2 10 . . . . 4 . 2 . . . . 3 . . . . 2 . 3 . Builder 34 | . 2 6 2 . . . 1 4 . . . . 5 . 2 . . . . 6 . . . . 1 . 5 . Tunneler 14 | 5 1 1 . 1 . . . 3 . . . . 1 . . . . . . . . . . . . . 2 . Hauler 13 | . 1 . . . . . 2 3 . . . . 2 . 1 1 . . . . . . . . 3 . . . Recycler 31 | 1 3 11 2 1 . . . 5 . . . . 3 . . . . 3 . . . . . . 1 . 1 . Minesweeper 2 | . . . . . . . . . . 1 . 1 . . . . . . . . . . . . . . . . Mechanic 6 | . . . . . . . . 4 . . . . . . . . . 1 . . . . . . . . 1 . Operator 3 | . 1 . . . . . . 2 . . . . . . . . . . . . . . . . . . . . Drone 2 | . . . . . . . . 1 . . . 1 . . . . . . . . . . . . . . . . Watcher 12 | . 1 . 1 . . . . 2 . . . . 3 . 1 . . 2 1 . . . . . . . 1 . Swarmer 67 | . 6 3 8 . . . . 7 1 . . . 10 . . . 8 . 1 9 . . . . 3 . 11 . Cutter 4 | . . . . . . . 3 1 . . . . . . . . . . . . . . . . . . . . Saboteur 2 | . . . . . . . . . . . . . . . . . . . . . . . . . . 1 1 . Grunt 61 | . 3 . 6 . . . 1 16 . . . . 6 . 5 . 6 8 3 4 . . . . 1 . 2 . Brawler 3 | . . . . . . . . 1 . . . . 1 . . . . . . 1 . . . . . . . . Duelist 7 | . . . . . . . . 5 . . . . 2 . . . . . . . . . . . . . . . Protector 1 | . . . . . . . . 1 . . . . . . . . . . . . . . . . . . . . Sentry 13 | . . . . . . . 2 3 . . . 1 1 . . . 1 2 . 1 . . . . . . 2 . Hunter 8 | . . . . . . . . 1 . . . . . . . . . 1 . 4 . . . . 2 . . . Programmer 17 | . . . . . . . . 4 . . . . 2 . 2 . . 1 . 1 . . . . 2 3 2 . Behemoth 1 | . . . . . . . . . . . . . . . . . . 1 . . . . . . . . . . Cetus Guard 2 | . . . . . . . . . . . . . . . . . . . 2 . . . . . . . . . Assembled 8 | . . 8 . . . . . . . . . . . . . . . . . . . . . . . . . . Savage 1 | . . . . . . . . . . . . . . . . . . 1 . . . . . . . . . . Fireman 1 | . . . . . . . . . . . . . . . . . . . . . . . . . 1 . . . Revision 1 | . . . . . . . . . . . . . . . . . . . . . . . . . 1 . . . Best Kill Streak 18 | 5 8 18 14 3 . . 7 13 1 1 . 1 9 . 10 1 5 4 4 8 . . . . 5 3 8 . Combat Bots Only 12 | . 4 5 9 . . . 3 12 1 . . 1 4 . 4 . 5 2 4 7 . . . . 3 3 6 . Max Kills in Single Turn 6 | 1 2 3 4 1 . . 2 4 1 1 . 1 4 . 4 1 5 2 1 6 . . . . 2 1 5 . Gunslinging . | . . . . . . . . . . . . . . . . . . . . . . . . . . . . . Exploded 5 | . . 3 2 . . . 1 3 . . . . 4 . 1 . 5 . . 5 . . . . . . 5 . Melee . | . . . . . . . . . . . . . . . . . . . . . . . . . . . . . Uniques/NPCs Destroyed . | . . . . . . . . . . . . . . . . . . . . . . . . . . . . . Combat | -11 -10 -10 -9 -9 -9 -8 -8 -7 -7 -7 -7 -6 -6 -6 -6 -5 -5 -5 -5 -4 -4 -4 -4 -3 -3 -3 -2 -2 -------- Run | Yrd Mat Min Mat Min Exi Min Mat Fac Low Low Zio Pro Fac Gar Fac Fac Gar Ext Cet Fac Upp Upp Zhi Pro Res Tes Res Qua Hostile Shots Fired 1835 | . 62 25 119 . . . 67 222 8 27 . 14 97 101 49 1 40 52 49 276 9 22 . . 187 144 169 95 Missed 765 | . 17 10 50 . . . 19 105 4 11 . 3 41 38 17 . 10 15 12 105 6 12 . . 91 75 85 39 Damage Taken 21174 | . 548 366 737 24 . . 917 1828 59 92 . 197 1063 1100 545 67 561 795 1038 3394 101 226 . . 1962 1697 2531 1326 Core 5806 | . 144 83 162 20 . . 152 410 12 61 . 80 137 594 115 . 108 81 85 928 23 93 . . 376 774 707 661 Absorbed by Shields 213 | . . . . . . . . . . . . . 9 . . . . 114 90 . . . . . . . . . Redirected to Shielding 395 | . 2 12 31 4 . . 14 39 . . . . 72 . 28 . 35 . . . . . . . 158 . . . Regen/Repaired (Parts) 776 | . . . . . . . . 160 . . 361 . 95 . . . . . . . . . . . 40 . 120 . Core Remaining (%) 38 | 100 . 9 . . . 54 72 . . . . 19 . . . . . . 72 . . . . 8 . 11 . . Volleys Fired 900 | 8 85 76 36 5 . . 29 126 7 8 2 19 86 11 28 7 54 71 31 78 2 . . 3 60 14 44 10 Largest 2 | 2 2 2 2 2 . . 2 2 2 2 2 2 2 1 2 1 2 2 2 2 2 . . 2 2 2 2 1 Hottest 243 | 40 80 90 90 87 . . 87 78 53 56 56 56 71 43 115 50 104 70 108 240 174 . . 184 188 243 233 120 Shots Fired 1487 | 16 170 149 71 6 . . 56 201 14 16 4 38 114 11 48 7 69 136 60 116 3 . . 6 82 15 69 10 Gun 988 | 16 157 78 53 . . . 27 99 14 16 4 38 69 6 31 . 33 134 60 86 3 . . 3 35 . 26 . Cannon 218 | . 13 39 10 3 . . 22 12 . . . . . . . . . . . 30 . . . 3 47 15 15 9 Launcher 281 | . . 32 8 3 . . 7 90 . . . . 45 5 17 7 36 2 . . . . . . . . 28 1 Special . | . . . . . . . . . . . . . . . . . . . . . . . . . . . . . Kinetic 855 | 16 157 78 53 3 . . 49 111 14 16 4 38 69 6 18 . 8 134 59 22 . . . . . . . . Thermal 311 | . 13 39 10 . . . . . . . . . . . 13 . . . 1 94 3 . . 6 67 15 41 9 Explosive 236 | . . 32 8 3 . . 7 90 . . . . 45 5 6 . 12 . . . . . . . . . 28 . Electromagnetic 85 | . . . . . . . . . . . . . . . 11 7 49 2 . . . . . . 15 . . 1 Robot Hit Streak 29 | 3 12 12 5 2 . . 8 21 3 4 . 7 29 6 8 12 22 13 11 10 . . . . 6 5 10 11 Robot Miss Streak 8 | 2 8 4 4 1 . . 3 3 3 1 . 2 2 . 3 . 2 3 3 3 . . . 8 7 1 4 . Penetration Max 3 | . . . . . . . 1 . . . . . . . . . . 3 1 . . . . . . . . . Secondary Targets 4 | . 1 . . . . . . . . . . . . . . . . 1 1 1 . . . . . . . . Max Gunslinging Chain 1 | . 1 . . . . . . . . . . . . . . . . 1 1 1 . . . . . . . . Shots Hit Robots 874 | 9 95 78 41 3 . . 34 133 7 9 . 29 76 6 28 6 21 98 40 64 . . . . 43 7 41 6 Core Hits 684 | 7 33 64 31 2 . . 22 172 2 3 . 11 73 3 31 1 30 62 20 48 . . . . 21 3 45 . Critical Kills 22 | . . . 1 . . . . . . . . . 1 . 1 . . 15 2 . . . . . 2 . . . Critical Parts Destroyed 33 | . . 1 . . . . . 1 . . . . . . 1 . . 22 5 3 . . . . . . . . Critical Strikes 65 | . . 1 1 1 . . 5 1 . . . . 1 . 2 . . 39 7 3 . . . . 4 . . . Meltdown 2 | . . . . . . . . . . . . . . . . . . . . . . . . . 2 . . . Destroy 55 | . . 1 1 . . . . 1 . . . . 1 . 2 . . 39 7 3 . . . . . . . . Blast 6 | . . . . 1 . . 5 . . . . . . . . . . . . . . . . . . . . . Corrupt 2 | . . . . . . . . . . . . . . . . . . . . . . . . . 2 . . . Melee Attacks . | . . . . . . . . . . . . . . . . . . . . . . . . . . . . . Impact . | . . . . . . . . . . . . . . . . . . . . . . . . . . . . . Slashing . | . . . . . . . . . . . . . . . . . . . . . . . . . . . . . Piercing . | . . . . . . . . . . . . . . . . . . . . . . . . . . . . . Sneak Attacks . | . . . . . . . . . . . . . . . . . . . . . . . . . . . . . Combat Hostiles . | . . . . . . . . . . . . . . . . . . . . . . . . . . . . . Follow-up Attacks . | . . . . . . . . . . . . . . . . . . . . . . . . . . . . . Damage Inflicted 39369 | 112 1242 1951 1280 256 . . 1194 8473 122 200 . 544 4510 139 2072 455 2525 1518 1112 3507 . . . . 1866 839 5197 255 Guns 11465 | 112 1064 421 452 . . . 314 1388 122 200 . 544 1104 97 430 . 171 1518 1112 1370 . . . . 619 . 427 . Cannons 4657 | . 178 385 72 57 . . 429 223 . . . . . . . . . . . 641 . . . . 1239 839 339 255 Explosions 23237 | . . 1145 754 199 . . 451 6862 . . . . 3406 42 1642 455 2354 . . 1496 . . . . . . 4431 . Melee . | . . . . . . . . . . . . . . . . . . . . . . . . . . . . . Ramming 10 | . . . 2 . . . . . . . . . . . . . . . . . . . . . 8 . . . Kinetic 9717 | 112 1064 421 452 57 . . 743 1611 122 200 . 544 1104 97 246 . 80 1518 1090 256 . . . . . . . . Thermal 7259 | . 178 385 72 . . . 97 174 . . . . 159 . 184 288 . . 22 2225 . . . . 1615 839 766 255 Explosive 21061 | . . 1145 754 199 . . 354 6655 . . . . 3247 42 1218 . 2009 . . 1007 . . . . . . 4431 . Electromagnetic 1322 | . . . . . . . . 33 . . . . . . 424 167 436 . . 19 . . . . 243 . . . Impact . | . . . . . . . . . . . . . . . . . . . . . . . . . . . . . Slashing . | . . . . . . . . . . . . . . . . . . . . . . . . . . . . . Piercing . | . . . . . . . . . . . . . . . . . . . . . . . . . . . . . Highest Corruption 5 | . . . . . . . 2 2 2 2 2 . 5 5 5 . . 1 . . . . . . 3 . . 4 Average Corruption 3 | . . . . . . . 2 1 2 2 2 . 5 5 5 . . 1 . . . . . . 2 . . 3 Corruption Purged 8 | . . . . . . . . 4 . . . . . . . . . 1 . . . . . . 3 . . . Corruption Blocked 36 | . . . . . . . . . . . . . . . . . . . . . . . . . 8 17 5 6 Effects 60 | . . . . . . . . 5 3 6 . . 9 6 19 . . 3 . . . . . . 5 . . 4 Message Errors 13 | . . . . . . . . 2 1 1 . . . 2 4 . . . . . . . . . . . . 3 Matter Fused 18 | . . . . . . . . 1 1 4 . . 2 2 5 . . . . . . . . . 3 . . . Heat Flow Errors 5 | . . . . . . . . . . . . . 1 1 1 . . 1 . . . . . . . . . 1 Energy Discharges 5 | . . . . . . . . . 1 1 . . 2 . 1 . . . . . . . . . . . . . Parts Rejected 1 | . . . . . . . . . . . . . 1 . . . . . . . . . . . . . . . Data Loss (minor) 6 | . . . . . . . . 1 . . . . 1 1 3 . . . . . . . . . . . . . Data Loss (major) 3 | . . . . . . . . . . . . . . . 2 . . . . . . . . . 1 . . . Misfires 6 | . . . . . . . . 1 . . . . 1 . 3 . . 1 . . . . . . . . . . Weapon Failures 3 | . . . . . . . . . . . . . 1 . . . . 1 . . . . . . 1 . . . Overload Shots 3 | . . . . . . . . . . . . . . . . . . . . 3 . . . . . . . . Overflow Damage 1504 | . 13 75 4 30 . . 57 184 . . . . 219 16 66 76 92 . . 106 . . . . 37 222 273 34 Projectiles 377 | . 13 . . 17 . . 1 . . . . . . . . . . . . 53 . . . . 37 222 . 34 Explosions 1127 | . . 75 4 13 . . 56 184 . . . . 219 16 66 76 92 . . 53 . . . . . . 273 . Melee . | . . . . . . . . . . . . . . . . . . . . . . . . . . . . . Knockbacks 6 | . . . . . . . 3 3 . . . . . . . . . . . . . . . . . . . . Impact . | . . . . . . . . . . . . . . . . . . . . . . . . . . . . . Kinetic 6 | . . . . . . . 3 3 . . . . . . . . . . . . . . . . . . . . Secondary . | . . . . . . . . . . . . . . . . . . . . . . . . . . . . . Self-Inflicted Damage 915 | . 94 99 17 . . . 174 114 . . . . 47 62 82 . 10 . . . . . . . 4 . 198 14 Shots 25 | . 3 4 1 . . . 3 4 . . . . 1 1 2 . 1 . . . . . . . . . 3 2 Rammed 2 | . . . 1 . . . . . . . . . . . . . . . . . . . . . 1 . . . Targets Rammed 2 | . . . 1 . . . . . . . . . . . . . . . . . . . . . 1 . . . Kicked . | . . . . . . . . . . . . . . . . . . . . . . . . . . . . . Crushed . | . . . . . . . . . . . . . . . . . . . . . . . . . . . . . Highest Temperature 607 | . 90 206 84 3 . . 233 311 12 18 18 42 178 150 324 12 89 206 . 607 6 . . 359 367 179 344 91 Average Temperature 76 | . 21 36 33 2 . . 100 70 6 11 12 10 57 84 111 6 32 104 . 144 5 . . 190 108 64 80 15 Received Heat Transfer 3392 | . 129 . 297 . . . 297 555 . . . 99 388 207 117 . 102 201 133 468 12 9 . . 126 63 171 18 Effects 13 | . . 2 . . . . . 3 . . . . . . . . . . . 4 . . . 1 2 . 1 . Shutdowns 2 | . . . . . . . . . . . . . . . . . . . . . . . . . 1 . 1 . Interference 6 | . . 2 . . . . . 3 . . . . . . . . . . . . . . . . 1 . . . Matter Decay 1 | . . . . . . . . . . . . . . . . . . . . . . . . 1 . . . . Short Circuit 2 | . . . . . . . . . . . . . . . . . . . . 2 . . . . . . . . Damage (minor) 1 | . . . . . . . . . . . . . . . . . . . . 1 . . . . . . . . Damage (major) 1 | . . . . . . . . . . . . . . . . . . . . 1 . . . . . . . . Siege Activations . | . . . . . . . . . . . . . . . . . . . . . . . . . . . . . Robots Corrupted 2 | . . . . . . . . . . . . . . . . 1 . . . . . . . . 1 . . . Combat Hostiles . | . . . . . . . . . . . . . . . . . . . . . . . . . . . . . Parts Fried 4 | . . . . . . . . . . . . . . . 2 . . 1 . . . . . . 1 . . . Impact Corruptions . | . . . . . . . . . . . . . . . . . . . . . . . . . . . . . Robots Melted 2 | . . . . . . . . . . . . . . . . . . . . . . . . . 2 . . . Combat Hostiles 1 | . . . . . . . . . . . . . . . . . . . . . . . . . 1 . . . Parts Melted 11 | . . 1 . . . . . . . . . . . . 1 . . . . . . . . . 9 . . . Heat Transferred 7091 | . 370 814 148 . . . 100 250 . . . . 100 . 400 200 . . 37 1658 . . . . 1628 387 777 222 Parts Sabotaged 2 | . . . . . . . . . . . . . . . . . . . . . . . . . . 2 . . Parts Stolen . | . . . . . . . . . . . . . . . . . . . . . . . . . . . . . Parts Stripped . | . . . . . . . . . . . . . . . . . . . . . . . . . . . . . Power Chain Reactions 4 | . 1 . . . . . . . . . . . . . . . 1 . . 2 . . . . . . . . Alert | -11 -10 -10 -9 -9 -9 -8 -8 -7 -7 -7 -7 -6 -6 -6 -6 -5 -5 -5 -5 -4 -4 -4 -4 -3 -3 -3 -2 -2 ------- Run | Yrd Mat Min Mat Min Exi Min Mat Fac Low Low Zio Pro Fac Gar Fac Fac Gar Ext Cet Fac Upp Upp Zhi Pro Res Tes Res Qua Peak Influence 2562 | 30 261 243 684 328 . . 298 2203 . . . . 942 728 867 444 2041 2008 2033 2018 . . . . 564 2075 2562 1700 Initial 1440 | . 19 92 94 266 . . . 93 . . . . 153 429 382 319 303 1071 1108 1054 . . . . 450 276 1149 1440 Average 960 | 14 161 144 375 276 . . 159 1170 . . . . 396 569 464 394 1508 1403 1588 1297 . . . . 472 1763 1830 1648 Maximum Alert Level 5 | . 1 1 2 1 . . 1 5 . . . . 3 3 3 2 5 5 5 5 . . . . 2 5 5 5 Low Security (%) 14 | 100 67 64 34 . . 100 57 16 . . . . 13 . . . . . . . . . . . . . . . Level 1 15 | . 32 35 8 100 . . 42 . . . . . 51 . 33 38 3 . . . . . . . 4 . . . Level 2 16 | . . . 56 . . . . 10 . . . . 26 98 55 61 5 . . . . . . . 95 . . . Level 3 6 | . . . . . . . . 4 . . . . 8 1 10 . 15 2 . 31 . . . . . . . . Level 4 24 | . . . . . . . . 42 . . . . . . . . 18 80 59 62 . . . . . . 41 . Level 5 17 | . . . . . . . . 26 . . . . . . . . 57 9 39 6 . . . . . . 58 . High Security . | . . . . . . . . . . . . . . . . . . 7 . . . . . . . . . . Max Security 4 | . . . . . . . . . . . . . . . . . . . . . . . . . . 99 . 99 Squads Dispatched 111 | . 2 . 4 . . . 3 19 . . . . 10 . 6 . . 5 2 8 . . . . 11 12 9 20 Investigation 26 | . 1 . 2 . . . 2 9 . . . . 3 . 1 . . 2 2 . . . . . 2 . 2 . Extermination 9 | . . . . . . . . 3 . . . . 2 . 1 . . . . 2 . . . . . . 1 . Reinforcement 29 | . 1 . 2 . . . 1 3 . . . . 3 . 4 . . 1 . 4 . . . . 9 . 1 . Assault 47 | . . . . . . . . 4 . . . . 2 . . . . 2 . 2 . . . . . 12 5 20 Garrison . | . . . . . . . . . . . . . . . . . . . . . . . . . . . . . Intercept . | . . . . . . . . . . . . . . . . . . . . . . . . . . . . . Searches Triggered . | . . . . . . . . . . . . . . . . . . . . . . . . . . . . . Construction Impeded 9 | . . . . . . . . 2 . . . . 2 . 1 . . 1 . 1 . . . . 1 . 1 . Haulers Reinforced 7 | . . . . . . . . . . . . . 1 . 2 . . . . 1 . . . . 3 . . . Active Scanning Responses . | . . . . . . . . . . . . . . . . . . . . . . . . . . . . . Cargo Convoy Interrupts 1 | . . . . . . . . . . . . . . . . . . . . 1 . . . . . . . . Stealth | -11 -10 -10 -9 -9 -9 -8 -8 -7 -7 -7 -7 -6 -6 -6 -6 -5 -5 -5 -5 -4 -4 -4 -4 -3 -3 -3 -2 -2 --------- Run | Yrd Mat Min Mat Min Exi Min Mat Fac Low Low Zio Pro Fac Gar Fac Fac Gar Ext Cet Fac Upp Upp Zhi Pro Res Tes Res Qua Distress Signals 23 | . . . 2 . . . 1 1 . . . . 1 . 1 . . . 1 4 . . . 1 8 2 1 . Communications Jammed 63 | . . . . . . . . . . . . . . . . . . . . . . . . . . . 53 10 Distress Signals 58 | . . . . . . . . . . . . . . . . . . . . . . . . . . . 48 10 Times Spotted 664 | . 18 11 39 . . . 17 82 2 3 . 12 35 15 22 1 22 49 30 69 7 5 . 5 40 66 76 38 Peak Tracking Total 38 | . 4 5 11 . . . 8 9 3 2 . 4 7 10 5 1 4 8 7 25 8 5 . 5 6 38 14 15 Tactical Retreats 64 | . . . 5 . . . . 8 2 1 . 1 . 3 7 . 1 2 1 9 . 1 . . 4 3 15 1 Traps | -11 -10 -10 -9 -9 -9 -8 -8 -7 -7 -7 -7 -6 -6 -6 -6 -5 -5 -5 -5 -4 -4 -4 -4 -3 -3 -3 -2 -2 ------- Run | Yrd Mat Min Mat Min Exi Min Mat Fac Low Low Zio Pro Fac Gar Fac Fac Gar Ext Cet Fac Upp Upp Zhi Pro Res Tes Res Qua Traps Triggered 38 | . 1 . 1 . . . 2 7 . . . . 1 1 1 3 10 5 . . . . . . 1 . 2 3 Indirectly 9 | . . . . . . . . . . . . . . . . 2 4 3 . . . . . . . . . . Trap Hack Attempts . | . . . . . . . . . . . . . . . . . . . . . . . . . . . . . Triggered . | . . . . . . . . . . . . . . . . . . . . . . . . . . . . . Disarmed 6 | . . . . . . . . . . . . . . . . . . . . 6 . . . . . . . . Reprogrammed . | . . . . . . . . . . . . . . . . . . . . . . . . . . . . . Reused . | . . . . . . . . . . . . . . . . . . . . . . . . . . . . . Traps Extracted . | . . . . . . . . . . . . . . . . . . . . . . . . . . . . . Installed . | . . . . . . . . . . . . . . . . . . . . . . . . . . . . . Triggered . | . . . . . . . . . . . . . . . . . . . . . . . . . . . . . Most Traps Carried 1 | . . . . . . . . . . 1 1 . . . . . . . . . . . . . . . . . Machines | -11 -10 -10 -9 -9 -9 -8 -8 -7 -7 -7 -7 -6 -6 -6 -6 -5 -5 -5 -5 -4 -4 -4 -4 -3 -3 -3 -2 -2 ---------- Run | Yrd Mat Min Mat Min Exi Min Mat Fac Low Low Zio Pro Fac Gar Fac Fac Gar Ext Cet Fac Upp Upp Zhi Pro Res Tes Res Qua Machines Disabled 103 | . 3 . 2 1 . . 7 36 . 1 . . 7 3 10 4 8 1 1 8 1 . . . . 4 2 4 Max in Single Turn 10 | . 2 . 1 1 . . 3 10 . 1 . . 2 1 2 4 2 1 . 3 1 . . . . 1 1 1 Garrison Access 4 | . . . . . . . . . . . . . . . . . . . . 1 . . . . 1 . 2 . Garrison Relay 5 | . . . . . . . . . . . . . . 1 . . 4 . . . . . . . . . . . Phase Generator 1 | . . . . . . . . . . . . . . 1 . . . . . . . . . . . . . . Machines Repaired . | . . . . . . . . . . . . . . . . . . . . . . . . . . . . . Machines Dismantled . | . . . . . . . . . . . . . . . . . . . . . . . . . . . . . Machines Sabotaged . | . . . . . . . . . . . . . . . . . . . . . . . . . . . . . Overloaded Fab Kills . | . . . . . . . . . . . . . . . . . . . . . . . . . . . . . Hacking | -11 -10 -10 -9 -9 -9 -8 -8 -7 -7 -7 -7 -6 -6 -6 -6 -5 -5 -5 -5 -4 -4 -4 -4 -3 -3 -3 -2 -2 --------- Run | Yrd Mat Min Mat Min Exi Min Mat Fac Low Low Zio Pro Fac Gar Fac Fac Gar Ext Cet Fac Upp Upp Zhi Pro Res Tes Res Qua Machines Accessed 117 | . 7 . 3 1 5 . 4 25 . 1 . . 6 1 8 1 2 13 3 7 1 1 9 1 . . 18 . Terminals 66 | . 7 . 3 . . . 4 12 . . . . 1 1 3 . 2 13 3 5 . . . 1 . . 11 . Fabricators 8 | . . . . . . . . 3 . . . . 2 . 2 . . . . . . . . . . . 1 . Repair Stations 8 | . . . . . . . . 4 . . . . 1 . 1 . . . . 1 . . . . . . 1 . Recycling Units 2 | . . . . . . . . 1 . . . . . . . . . . . . . . . . . . 1 . Scanalyzers 7 | . . . . . . . . 3 . . . . . . 2 . . . . . . . . . . . 2 . Garrison Access 8 | . . . . . . . . 2 . . . . 2 . . 1 . . . 1 . . . . . . 2 . Total Hacks 351 | . 17 . 11 1 50 . 16 67 . 1 . . 17 1 19 1 5 23 9 18 1 1 48 1 . . 44 . Successful 209 | . 8 . 6 1 50 . 4 22 . 1 . . 10 1 9 1 1 12 2 12 1 1 48 1 . . 18 . Failed 140 | . 8 . 5 . . . 11 45 . . . . 7 . 10 . 4 11 7 6 . . . . . . 26 . Catastrophic 35 | . 5 . 2 . . . 4 12 . . . . 1 . 2 . . 2 1 2 . . . . . . 4 . Database Lockouts 2 | . 1 . . . . . 1 . . . . . . . . . . . . . . . . . . . . . Manual 98 | . 13 . 9 . 1 . 13 10 . . . . 1 . 8 . . 8 1 12 . . . . . . 22 . Terminals 170 | . 17 . 11 . . . 16 31 . . . . 3 1 8 . 5 23 9 16 . . . 1 . . 29 . Fabricators 29 | . . . . . . . . 16 . . . . 7 . 4 . . . . . . . . . . . 2 . Repair Stations 23 | . . . . . . . . 10 . . . . 4 . 4 . . . . 1 . . . . . . 4 . Recycling Units 2 | . . . . . . . . 1 . . . . . . . . . . . . . . . . . . 1 . Scanalyzers 16 | . . . . . . . . 7 . . . . . . 3 . . . . . . . . . . . 6 . Garrison Access 9 | . . . . . . . . 2 . . . . 3 . . 1 . . . 1 . . . . . . 2 . Terminal Hacks 152 | . 8 . 6 1 50 . 4 9 . 1 . . 1 1 . . 1 8 2 6 1 1 48 1 . . 3 . Record 88 | . . . . . 49 . . . . . . . . . . . . . 2 . 1 . 36 . . . . . Part Schematic 5 | . . . . . . . . . . . . . 1 . . . . . . . . . 4 . . . . . Robot Schematic 2 | . . . 1 . . . 1 . . . . . . . . . . . . . . . . . . . . . Robot Analysis 11 | . 2 . 4 . . . 1 . . . . . . . . . . . . . . . 4 . . . . . Prototype ID Bank 15 | . 2 . 1 . . . 2 5 . . . . . . . . . . . 1 . . 4 . . . . . Open Door 13 | . . . . 1 . . . . . 1 . . . . . . 1 8 . . . 1 . 1 . . . . Open DSF 2 | . . . . . . . . 2 . . . . . . . . . . . . . . . . . . . . Level Access Points 1 | . 1 . . . . . . . . . . . . . . . . . . . . . . . . . . . Branch Access Points 4 | . 1 . . . . . . 1 . . . . . . . . . . . 1 . . . . . . 1 . Terminal Index 1 | . . . . . . . . . . . . . . . . . . . . 1 . . . . . . . . Alert Level 1 | . . . . . . . . 1 . . . . . . . . . . . . . . . . . . . . Unreport Threat 2 | . . . . . . . . . . . . . . . . . . . . . . . . . . . 2 . Locate Traps 1 | . 1 . . . . . . . . . . . . . . . . . . . . . . . . . . . Disarm Traps 1 | . . . . . . . . . . . . . . . . . . . . 1 . . . . . . . . Recall Extermination 1 | . . . . . . . . . . . . . . . . . . . . 1 . . . . . . . . Zone Layout 2 | . 1 . . . . . . . . . . . . . . . . . . 1 . . . . . . . . Garrison Registry 1 | . . . . . . . . . . . . . . 1 . . . . . . . . . . . . . . Derelict Proto ID Bank 1 | . . . . . 1 . . . . . . . . . . . . . . . . . . . . . . . Fabricator Hacks 13 | . . . . . . . . 6 . . . . 4 . 3 . . . . . . . . . . . . . Load Schematic 7 | . . . . . . . . 4 . . . . 2 . 1 . . . . . . . . . . . . . Build 6 | . . . . . . . . 2 . . . . 2 . 2 . . . . . . . . . . . . . Repair Station Hacks 13 | . . . . . . . . 4 . . . . 4 . 1 . . . . 1 . . . . . . 3 . Scan Component 6 | . . . . . . . . 2 . . . . 2 . . . . . . . . . . . . . 2 . Repair 5 | . . . . . . . . 2 . . . . 2 . . . . . . . . . . . . . 1 . Refit 2 | . . . . . . . . . . . . . . . 1 . . . . 1 . . . . . . . . Recycling Unit Hacks 2 | . . . . . . . . 1 . . . . . . . . . . . . . . . . . . 1 . Retrieve Components 2 | . . . . . . . . 1 . . . . . . . . . . . . . . . . . . 1 . Scanalyzer 7 | . . . . . . . . 2 . . . . . . 2 . . . . . . . . . . . 3 . Insert Component 5 | . . . . . . . . 2 . . . . . . 1 . . . . . . . . . . . 2 . Analyze 2 | . . . . . . . . . . . . . . . 1 . . . . . . . . . . . 1 . Garrison Access Hacks 5 | . . . . . . . . . . . . . 1 . . 1 . . . 1 . . . . . . 2 . Unlock Access 2 | . . . . . . . . . . . . . 1 . . 1 . . . . . . . . . . . . Seal Access 3 | . . . . . . . . . . . . . . . . . . . . 1 . . . . . . 2 . Unauthorized Hacks 17 | . . . . . . . . . . . . . . . 3 . . 4 . 4 . . . . . . 6 . Terminals 17 | . . . . . . . . . . . . . . . 3 . . 4 . 4 . . . . . . 6 . Assimilate 1 | . . . . . . . . . . . . . . . 1 . . . . . . . . . . . . . Botnet 16 | . . . . . . . . . . . . . . . 2 . . 4 . 4 . . . . . . 6 . Fabricators . | . . . . . . . . . . . . . . . . . . . . . . . . . . . . . Repair Stations . | . . . . . . . . . . . . . . . . . . . . . . . . . . . . . Recycling Units . | . . . . . . . . . . . . . . . . . . . . . . . . . . . . . Scanalyzers . | . . . . . . . . . . . . . . . . . . . . . . . . . . . . . Garrison Access . | . . . . . . . . . . . . . . . . . . . . . . . . . . . . . Data Cores Recovered 1 | . 1 . . . . . . . . . . . . . . . . . . . . . . . . . . . Used . | . . . . . . . . . . . . . . . . . . . . . . . . . . . . . Hacking Detections 83 | . 6 . 3 . . . 4 21 . . . . 5 1 7 1 2 9 3 5 . . . . . . 16 . Full Trace Events 20 | . . . 1 . . . 1 8 . . . . 3 . 1 . . 2 2 . . . . . . . 2 . Feedback Events . | . . . . . . . . . . . . . . . . . . . . . . . . . . . . . Feedback Blocked . | . . . . . . . . . . . . . . . . . . . . . . . . . . . . . Robot Schematics Acquired 5 | . . . 1 . . . 1 . . . 3 . . . . . . . . . . . . . . . . . Robots Built 17 | . . . . . . . . 7 . . . . 6 . 4 . . . . . . . . . . . . . Authchips . | . . . . . . . . . . . . . . . . . . . . . . . . . . . . . Time 480 | . . . . . . . . 250 . . . . 96 . 134 . . . . . . . . . . . . . Total Robot Build Rating 59 | . . . . . . . . 25 . . . . 18 . 16 . . . . . . . . . . . . . Part Schematics Acquired 21 | . . . . . . . . . . . 15 . 1 . 1 . . . . . . . 4 . . . . . Parts Built 1 | . . . . . . . . . . . . . . . 1 . . . . . . . . . . . . . Authchips . | . . . . . . . . . . . . . . . . . . . . . . . . . . . . . Time 117 | . . . . . . . . . . . . . . . 117 . . . . . . . . . . . . . Total Part Build Rating 7 | . . . . . . . . . . . . . . . 7 . . . . . . . . . . . . . Parts Repaired 5 | . . . . . . . . 2 . . . . 2 . . . . . . . . . . . . . 1 . Time 212 | . . . . . . . . 96 . . . . 82 . . . . . . . . . . . . . 34 . Parts Recycled . | . . . . . . . . . . . . . . . . . . . . . . . . . . . . . Recycled Matter . | . . . . . . . . . . . . . . . . . . . . . . . . . . . . . Retrieved Matter . | . . . . . . . . . . . . . . . . . . . . . . . . . . . . . Retrieved Components 11 | . . . . . . . . 10 . . . . . . . . . . . . . . . . . . 1 . Parts Scanalyzed 4 | . . . . . . . . 2 . . . . . . 1 . . . . . . . . . . . 1 . Part Schematics Acquired 1 | . . . . . . . . . . . . . . . 1 . . . . . . . . . . . . . Parts Damaged . | . . . . . . . . . . . . . . . . . . . . . . . . . . . . . Bothacking | -11 -10 -10 -9 -9 -9 -8 -8 -7 -7 -7 -7 -6 -6 -6 -6 -5 -5 -5 -5 -4 -4 -4 -4 -3 -3 -3 -2 -2 ------------ Run | Yrd Mat Min Mat Min Exi Min Mat Fac Low Low Zio Pro Fac Gar Fac Fac Gar Ext Cet Fac Upp Upp Zhi Pro Res Tes Res Qua Used RIF Installer . | . . . . . . . . . . . . . . . . . . . . . . . . . . . . . Robots Hacked . | . . . . . . . . . . . . . . . . . . . . . . . . . . . . . Non-combat . | . . . . . . . . . . . . . . . . . . . . . . . . . . . . . Combat . | . . . . . . . . . . . . . . . . . . . . . . . . . . . . . Robot Hacks Applied . | . . . . . . . . . . . . . . . . . . . . . . . . . . . . . Relay Couplers Released 22 | . . . . . . . . . . . . . . 3 . . 16 . . . . . . . 3 . . . Machine Destruction 22 | . . . . . . . . . . . . . . 3 . . 16 . . . . . . . 3 . . . Fabnet Peak Effective % . | . . . . . . . . . . . . . . . . . . . . . . . . . . . . . Robots Rewired 19 | . . . . . . . . . . 4 . . . . 1 . 6 7 . . . . . . . 1 . . Allies Hacked 1 | . . . . . . . . . . . . . . . . . . 1 . . . . . . . . . . Hacks Repelled . | . . . . . . . . . . . . . . . . . . . . . . . . . . . . . Allies | -11 -10 -10 -9 -9 -9 -8 -8 -7 -7 -7 -7 -6 -6 -6 -6 -5 -5 -5 -5 -4 -4 -4 -4 -3 -3 -3 -2 -2 -------- Run | Yrd Mat Min Mat Min Exi Min Mat Fac Low Low Zio Pro Fac Gar Fac Fac Gar Ext Cet Fac Upp Upp Zhi Pro Res Tes Res Qua Total Allies 64 | . . . . 2 . . . 7 . 4 4 . 7 . 6 . 7 21 5 . . . . . . 1 . . Largest Group 15 | . . . . 2 2 . . 7 . 4 8 8 4 . 4 . 6 15 6 5 . . . . . 1 . . Highest-Rated Group 633 | . . . . 51 51 . . 123 . 124 226 226 101 . 48 . 327 502 633 516 . . . . . 146 . . Highest-Rated Ally 159 | . . . . 31 31 . . 25 . 31 31 31 31 . 29 . 68 159 159 153 . . . . . 146 . . Warlord Squad Rendezvous 3 | . . . . . . . . . . . . . . . . . . . . . . . . . 3 . . . Geek 1 | . . . . . . . . . . . . . . . . . . . . . . . . . 1 . . . Pyro 1 | . . . . . . . . . . . . . . . . . . . . . . . . . 1 . . . Ghost 1 | . . . . . . . . . . . . . . . . . . . . . . . . . 1 . . . Total Orders 46 | . . . . . . . . . . . . . 9 . 2 . 24 . 4 . 4 1 . . . . 2 . STAY 16 | . . . . . . . . . . . . . . . 1 . 13 . 2 . . . . . . . . . FOLLOW 14 | . . . . . . . . . . . . . . . 1 . 11 . 2 . . . . . . . . . EXPLORE 6 | . . . . . . . . . . . . . 1 . . . . . . . 3 1 . . . . 1 . RETURN 10 | . . . . . . . . . . . . . 8 . . . . . . . 1 . . . . . 1 . Ally Attacks 601 | . . . . . . . . 78 . 20 . 68 39 . 18 . 49 200 110 5 . . . . . 14 . . Total Damage 17394 | . . . . . . . . 1179 . 415 . 949 973 . 145 . 3088 5311 4244 184 . . . . . 906 . . Kills 117 | . . . . . . . . 12 . 1 . 8 8 . . . 22 33 27 . . . . . . 6 . . Allies Corrupted 2 | . . . . . . . . . . . . 1 . . . . . 1 . . . . . . . . . . Allies Melted . | . . . . . . . . . . . . . . . . . . . . . . . . . . . . . Intel | -11 -10 -10 -9 -9 -9 -8 -8 -7 -7 -7 -7 -6 -6 -6 -6 -5 -5 -5 -5 -4 -4 -4 -4 -3 -3 -3 -2 -2 ------- Run | Yrd Mat Min Mat Min Exi Min Mat Fac Low Low Zio Pro Fac Gar Fac Fac Gar Ext Cet Fac Upp Upp Zhi Pro Res Tes Res Qua Robot Analysis Total 11 | . 2 . 4 . . . 1 . . . . . . . . . . . . . . . 4 . . . . . Derelict Logs Recovered 7 | . . 3 . 1 . . . . . 1 1 1 . . . . . . . . . . . . . . . . Drone Launches 16 | . . . . . . . . . . . . . 8 . . . . . . . 4 1 . . . . 3 . Drone Recoveries 13 | . . . . . . . . . . . . . 8 . . . . . . . 2 . . . . . 3 . Exploration | -11 -10 -10 -9 -9 -9 -8 -8 -7 -7 -7 -7 -6 -6 -6 -6 -5 -5 -5 -5 -4 -4 -4 -4 -3 -3 -3 -2 -2 ------------- Run | Yrd Mat Min Mat Min Exi Min Mat Fac Low Low Zio Pro Fac Gar Fac Fac Gar Ext Cet Fac Upp Upp Zhi Pro Res Tes Res Qua Turns Passed 19067 | 95 754 733 315 385 389 282 460 1904 234 521 647 1080 1514 301 913 202 1644 1325 813 1079 291 260 76 208 774 252 1169 447 Spaces Moved 23733 | 65 632 780 288 325 255 214 378 2686 630 914 1469 1016 1574 371 1235 288 1925 981 545 1322 494 417 238 389 1029 459 2284 530 Core 411 | 1 . . 7 222 . . 2 . . . . . 1 101 8 . . . . 24 . . . . . 10 29 6 Treads . | . . . . . . . . . . . . . . . . . . . . . . . . . . . . . Legs 2473 | . . . . 103 255 214 129 . . . . 203 . . . . 130 586 520 333 . . . . . . . . Wheels 440 | 64 376 . . . . . . . . . . . . . . . . . . . . . . . . . . . Hover 10285 | . 256 780 281 . . . 229 1933 . . . . 1562 270 1227 288 1795 395 25 . . . . . 576 . 144 524 Flight 10124 | . . . . . . . 18 753 630 914 1469 813 11 . . . . . . 965 494 417 238 389 453 449 2111 . Fastest Speed 16 | 50 56 56 66 100 130 130 43 31 32 32 32 32 37 50 40 45 48 48 52 16 37 23 27 27 27 28 34 48 Average Speed 53 | 84 70 63 69 109 130 130 79 44 33 32 32 50 55 54 47 46 65 92 118 51 39 38 27 27 43 32 38 64 Slowest Speed 260 | 90 80 116 100 130 130 130 200 120 37 112 32 120 150 60 108 102 260 120 126 190 40 40 27 27 197 50 110 250 Overloaded Moves 48 | . . . . . . . . . . . . . . . 48 . . . . . . . . . . . . . Propulsion Burnouts . | . . . . . . . . . . . . . . . . . . . . . . . . . . . . . Robots Hopped 80 | . . . . . . . . 12 2 1 . . . . . . . . . 33 . 1 . . 1 3 27 . Cave-ins Triggered 1 | . . . . . . . . . . . . . 1 . . . . . . . . . . . . . . . Teleports 5 | . . . . . . . . . . . . . . . . . . . . . . . . 1 . . . 4 Exploration Rate (%) 56 | 3 86 91 39 70 62 59 24 56 83 82 86 69 36 45 28 9 77 89 73 26 93 68 63 56 15 53 53 42 Regions Visited 28 Branch Regions 16 Pre-discovered Areas 6 | . . . . . 1 . . . . . . 1 . . . . . . . . 1 . 3 . . . . . Known Exits Taken 21 | . 1 1 . . . . 1 1 1 1 1 1 1 . 1 1 . 1 1 1 1 1 1 1 1 1 1 . Unknown Exits Taken 5 | 1 . . 1 1 1 1 . . . . . . . . . . . . . . . . . . . . . . Scrap Searched 14 | . . 1 . 1 . 1 . . . 2 2 3 . . . . . . . . 1 3 . . . . . . Spaces Dug 99 | . . . . . . . 12 12 . . . . 17 . . . . . . 6 2 . . . 3 2 45 . Terrain Destroyed 2486 | . 6 202 49 43 . . 134 603 . . . . 570 138 127 36 139 6 5 118 2 . . 5 13 2 288 . Melee . | . . . . . . . . . . . . . . . . . . . . . . . . . . . . . Projectile 73 | . . . . . . . 12 1 . . . . . . 1 . 2 3 5 20 2 . . 5 13 2 7 . AOE 2410 | . 6 202 49 43 . . 122 602 . . . . 570 138 126 36 137 . . 98 . . . . . . 281 . Terrain Rammed . | . . . . . . . . . . . . . . . . . . . . . . . . . . . . . Walls Destroyed . | . . . . . . . . . . . . . . . . . . . . . . . . . . . . . Machines Disabled . | . . . . . . . . . . . . . . . . . . . . . . . . . . . . . Actions | -11 -10 -10 -9 -9 -9 -8 -8 -7 -7 -7 -7 -6 -6 -6 -6 -5 -5 -5 -5 -4 -4 -4 -4 -3 -3 -3 -2 -2 --------- Run | Yrd Mat Min Mat Min Exi Min Mat Fac Low Low Zio Pro Fac Gar Fac Fac Gar Ext Cet Fac Upp Upp Zhi Pro Res Tes Res Qua Total 28406 | 85 779 879 335 348 312 217 481 3167 638 1123 1640 1544 2085 457 1513 351 2236 1269 654 1564 583 514 249 485 1260 541 2476 621 Wait 2777 | . 19 4 3 7 55 3 23 239 . 168 160 503 350 54 193 39 130 98 41 141 73 93 . 92 100 40 95 54 Move 23553 | 64 631 779 287 324 254 213 377 2661 625 911 1468 1015 1573 370 1234 288 1924 980 544 1260 493 414 237 388 1026 452 2231 530 Hop 73 | . . . . . . . . 12 2 1 . . . . . . . . . 28 . 1 . . 1 3 25 . Pick Up 115 | 4 14 1 2 6 1 . 10 23 1 2 3 1 6 1 4 . 8 4 3 3 2 . 1 . 6 . 7 2 Fast Attach 254 | 7 4 3 . 3 . 1 16 17 2 . . 3 21 . 17 4 7 14 13 26 4 3 5 . 32 11 29 12 Attach 81 | . 4 4 3 . . . 3 12 . 1 . . 6 3 . 5 7 1 1 2 1 1 1 1 4 6 10 5 Detach 67 | . 1 4 . . . . 3 6 . 1 . . 6 . 2 3 2 4 2 3 1 . 2 1 7 8 9 2 Swap 139 | 1 7 5 . . 1 . 4 25 . 3 4 . 16 1 14 2 14 9 5 5 4 1 . . 7 1 9 1 Drop 225 | 1 14 3 3 3 1 . 16 27 1 2 3 3 20 3 18 3 15 19 14 18 3 1 3 . 11 3 17 . Fire 900 | 8 85 76 36 5 . . 29 126 7 8 2 19 86 11 28 7 54 71 31 78 2 . . 3 60 14 44 10 Melee . | . . . . . . . . . . . . . . . . . . . . . . . . . . . . . Ram 2 | . . . 1 . . . . . . . . . . . . . . . . . . . . . 1 . . . Kick . | . . . . . . . . . . . . . . . . . . . . . . . . . . . . . Crush . | . . . . . . . . . . . . . . . . . . . . . . . . . . . . . Escape Stasis 102 | . . . . . . . . 19 . . . . 1 13 . . 52 12 . . . . . . . . . 5 Rewire 118 | . . . . . . . . . . 26 . . . 1 3 . 23 57 . . . . . . 5 3 . . Trap . | . . . . . . . . . . . . . . . . . . . . . . . . . . . . . Miscellaneous . | . . . . . . . . . . . . . . . . . . . . . . . . . . . . . Route ------- -11/Scrapyard -10/Materials (discovered 4 exits: *Mat x3 / *Min) -10/Mines (discovered 2 exits: *Mat x2) -9/Materials (discovered 3 exits: *Mat / *Min / Sto) -9/Mines (discovered 2 exits: *Mat / *Exi) -9/Exiles (discovered 2 exits: [*Min x2]) -8/Mines -8/Materials -7/Factory (discovered 5 exits: *Fac x3 / *Low x2) -7/Lower Caves -7/Lower Caves (discovered 2 exits: *Fac / *Zio) -7/Zion -6/Proximity Caves -6/Factory (discovered 7 exits: *Fac x4 / *Low x2 / Gar) -6/Garrison (discovered 3 exits: *Fac x3) -6/Factory (discovered 2 exits: *Fac / *Low) -5/Factory (discovered 2 exits: *Fac / Gar) -5/Garrison (discovered 4 exits: *Ext x4) -5/Extension (discovered 2 exits: *Fac / *Cet) -5/Cetus (discovered 2 exits: *Fac / [*Arc]) -4/Factory (discovered 2 exits: *Upp x2) -4/Upper Caves -4/Upper Caves (discovered 2 exits: *Res / *Zhi) -4/Zhirov -3/Proximity Caves -3/Research (discovered 2 exits: *Arm / *Tes) -3/Testing -2/Research (discovered 3 exits: *Acc / *Qua x2) -2/Quarantine History --------- Turn | Location | Event 29 | -11/Scrapyard | Discovered new exit (range 15) 96 | -11/Scrapyard | Entered Materials 313 | -10/Materials | Build established: Mutant 378 | -10/Materials | Central database locked down 382 | -10/Materials | Discovered new exit (range 12) 383 | -10/Materials | Identified exit to Mines 433 | -10/Materials | Discovered new exit (range 11) 489 | -10/Materials | Discovered new exit (range 15) 545 | -10/Materials | Core integrity fell below 50% 580 | -10/Materials | Identified exit to Materials 850 | -10/Materials | Entered Mines 886 | -10/Mines | Assembled infested the area 891 | -10/Mines | Assisted by a Guerilla fighting off Assembled 893 | -10/Mines | Met a Derelict bent on vengeance 899 | -10/Mines | Learned Materials security intel 1040 | -10/Mines | Discovered exit to Materials (range 15) 1090 | -10/Mines | Lost 3 parts (1p2n) 1118 | -10/Mines | Core integrity fell below 20% 1144 | -10/Mines | Learned 2 Materials zone layouts 1269 | -10/Mines | Discovered exit to Materials (range 14) 1354 | -10/Mines | Found a damaged Exp. Sensor Array with a note attached 1378 | -10/Mines | Found Prototype Device 1395 | -10/Mines | Build established: Scavenger-Mutant 1583 | -10/Mines | Entered Materials 1583 | -9/Materials | Evolved 2 slots: Propulsion x2 1584 | -9/Materials | Identified exit to Storage 1674 | -9/Materials | Discovered new exit (range 13) 1743 | -9/Materials | Destroyed 9 combat bots 1807 | -9/Materials | Lost 4 parts (1p1n2w) 1858 | -9/Materials | Discovered new exit (range 3) 1898 | -9/Materials | Entered Mines 1941 | -9/Mines | Discovered new exit (range 8) 2068 | -9/Mines | Build established: Mutant 2123 | -9/Mines | Met a Derelict who couldn't figure out how to use a Trap Extractor 2191 | -9/Mines | Deemed a non-threat by the Exiles lab entrance 2191 | -9/Mines | Discovered new exit (range 5) 2283 | -9/Mines | Entered Exiles 2283 | -9/Exiles | Accompanied by 2 allies 2302 | -9/Exiles | Discovered new exit (range 15) 2313 | -9/Exiles | Led the pair of lost Derelicts to a safe place 2322 | -9/Exiles | Met 8R-AWN 2341 | -9/Exiles | Met EX-HEX 2376 | -9/Exiles | Met EX-BIN 2393 | -9/Exiles | Aligned with FarCom system 2395 | -9/Exiles | Given EX-Vault access code 2447 | -9/Exiles | Opened EX-Vault 2464 | -9/Exiles | Found Chronowheel 2491 | -9/Exiles | Warned to stay clear of 0b10 Research branches 2501 | -9/Exiles | Exiles lab attacked by MAIN.C 2555 | -9/Exiles | Learned location of Zion (-7) 2657 | -9/Exiles | Discovered new exit (range 14) 2672 | -9/Exiles | Left Exiles lab with Chronowheel 2672 | -9/Exiles | Entered Mines 2924 | -8/Mines | Discovered new exit (range 8) 2954 | -8/Mines | Entered Materials 2954 | -8/Materials | Evolved 2 slots: Utility x2 2955 | -8/Materials | Identified exit to Factory 3329 | -8/Materials | Central database locked down 3414 | -8/Materials | Entered Factory 3414 | -7/Factory | Evolved 2 slots: Utility x2 3417 | -7/Factory | Identified Exp. Sensor Array 3532 | -7/Factory | Identified exit to DSF 3648 | -7/Factory | Identified exit to DSF 3814 | -7/Factory | First assault squad dispatched 4017 | -7/Factory | Destroyed 12 combat bots 4052 | -7/Factory | Discovered new exit (range 15) 4113 | -7/Factory | Discovered new exit (range 11) 4198 | -7/Factory | Lost 6 parts (3n3u) 4204 | -7/Factory | Repaired Prc. Assault Rifle 4293 | -7/Factory | Identified exit to Factory 4362 | -7/Factory | Core integrity fell below 50% 4648 | -7/Factory | Fabricated S-27 Virus (x4) 4749 | -7/Factory | Repaired Hover Unit 4764 | -7/Factory | Fabricated C-17 Slicer? 4855 | -7/Factory | Lost 3 allies 4945 | -7/Factory | Discovered exit to Factory (range 16) 5029 | -7/Factory | Identified exit to Lower Caves 5318 | -7/Factory | Entered Lower Caves 5345 | -7/Lower Caves | Lost 3 parts (2n1w) 5444 | -7/Lower Caves | Encountered a Warlord checkpoint 5545 | -7/Lower Caves | Discovered new exit (range 9) 5547 | -7/Lower Caves | Identified exit to Lower Caves 5552 | -7/Lower Caves | Entered another Lower Caves area 5554 | -7/Lower Caves | Learned 8 Factory zone layouts 5563 | -7/Lower Caves | Discovered exit to Factory (range 10) 5703 | -7/Lower Caves | Build established: Sprinter 5716 | -7/Lower Caves | Spotted B-75 Beast 5730 | -7/Lower Caves | Attacked by a delusional Derelict stockpiling Unaware 5772 | -7/Lower Caves | Encountered a Warlord checkpoint 5965 | -7/Lower Caves | Allies destroyed B-75 Beast 6040 | -7/Lower Caves | Discovered new exit (range 11) 6044 | -7/Lower Caves | Identified exit to Zion 6073 | -7/Lower Caves | Entered Zion 6073 | -7/Zion | Accompanied by 4 allies 6084 | -7/Zion | System corruption cleaned by Quarantine Array 6114 | -7/Zion | Given the Hacking Drone Bay 6123 | -7/Zion | Discovered new exit (range 12) 6139 | -7/Zion | Gained Derelict followers 6195 | -7/Zion | Learned Factory terminal intel 6241 | -7/Zion | Build established: Commander-Sprinter 6288 | -7/Zion | Visited the Megawrench Repair Shop 6288 | -7/Zion | Megawrench repaired 10 parts 6326 | -7/Zion | Gained Derelict followers 6349 | -7/Zion | Found GAL Module 6366 | -7/Zion | Rebuked by Imprinter 6399 | -7/Zion | Learned Factory non-interactive machine intel 6677 | -7/Zion | Found Prototype Device 6690 | -7/Zion | Identified exit to Proximity Caves 6720 | -7/Zion | Entered Proximity Caves 6720 | -6/Proximity Caves | Accompanied by 8 allies 6722 | -6/Proximity Caves | Spotter reported a threat 6915 | -6/Proximity Caves | Attracted the attention of an 0b10 checkpoint 7154 | -6/Proximity Caves | Build established: Sprinter 7392 | -6/Proximity Caves | Core integrity fell below 20% 7535 | -6/Proximity Caves | Discovered exit to Factory (range 15) 7800 | -6/Proximity Caves | Entered Factory 7800 | -6/Factory | Accompanied by 3 allies 7800 | -6/Factory | Evolved 2 slots: Utility x2 7801 | -6/Factory | Identified exit to Factory 7802 | -6/Factory | Loaded intel: 228 non-interactive machine locations 7803 | -6/Factory | Loaded intel: 26 terminal locations 7842 | -6/Factory | Identified Hacking Drone Bay 7899 | -6/Factory | Identified exit to DSF 8028 | -6/Factory | Identified exit to Lower Caves 8104 | -6/Factory | Build established: Scout 8272 | -6/Factory | Repaired Adv. Weight Redist. System 8318 | -6/Factory | Repaired Hvy. Rocket Launcher 8415 | -6/Factory | Build established: Mutant 8850 | -6/Factory | First assault squad dispatched 8864 | -6/Factory | Crushed by falling debris 9099 | -6/Factory | Fabricated C-17 Slicer? 9183 | -6/Factory | Fabricated C-17 Slicer (x3) 9314 | -6/Factory | Identified exit to Garrison 9314 | -6/Factory | Entered Garrison 9344 | -6/Garrison | Lost 3 allies 9399 | -6/Garrison | Phase Generator disabled 9414 | -6/Garrison | Garrison Relay disabled 9505 | -6/Garrison | Triggered checkpoint 9505 | -6/Garrison | Spotted B-75 Beast 9554 | -6/Garrison | Activated Chronowheel 9589 | -6/Garrison | Discovered new exit (range 44) 9589 | -6/Garrison | Discovered new exit (range 20) 9589 | -6/Garrison | Discovered new exit (range 77) 9594 | -6/Garrison | Core integrity fell below 50% 9607 | -6/Garrison | Core integrity fell below 20% 9614 | -6/Garrison | Identified exit to Factory 9615 | -6/Garrison | Lost 9 parts (2n5u2w) 9615 | -6/Garrison | Entered Factory 9732 | -6/Factory | Discovered exit to Lower Caves (range 7) 9793 | -6/Factory | Discovered exit to Factory (range 22) 10099 | -6/Factory | Fabricated Micro-nuke Launcher (x1) 10385 | -6/Factory | Fabricated S-27 Virus? 10447 | -6/Factory | Lost 4 allies 10528 | -6/Factory | Entered another Factory area 10528 | -5/Factory | Evolved 2 slots: Utility x2 10712 | -5/Factory | Build established: Scout 10712 | -5/Factory | Discovered new exit (range 18) 10730 | -5/Factory | Identified exit to Garrison 10730 | -5/Factory | Entered Garrison 10742 | -5/Garrison | Triggered checkpoint 10756 | -5/Garrison | Garrison Relay disabled 10778 | -5/Garrison | Triggered checkpoint 10822 | -5/Garrison | Discovered new exit (range 5) 10824 | -5/Garrison | Identified exit to Extension 10877 | -5/Garrison | Spotted B-75 Beast 10931 | -5/Garrison | Allies destroyed B-75 Beast 11003 | -5/Garrison | Triggered checkpoint 11049 | -5/Garrison | Discovered exit to Extension (range 21) 11128 | -5/Garrison | Triggered checkpoint 11149 | -5/Garrison | Triggered checkpoint 11271 | -5/Garrison | Discovered exit to Extension (range 11) 11272 | -5/Garrison | Spotted B-75 Beast 11283 | -5/Garrison | Allies destroyed B-75 Beast 11314 | -5/Garrison | Rescued a captive Derelict 11344 | -5/Garrison | Triggered checkpoint 11402 | -5/Garrison | Triggered checkpoint 11435 | -5/Garrison | Garrison Relay disabled 11452 | -5/Garrison | Discovered exit to Extension (range 19) 11649 | -5/Garrison | Triggered checkpoint 11831 | -5/Garrison | Build established: Commander-Mutant 12207 | -5/Garrison | Build established: Scavenger-Mutant 12374 | -5/Garrison | Entered Extension 12374 | -5/Extension | Accompanied by 5 allies 12418 | -5/Extension | Rescued a captive Derelict 12419 | -5/Extension | Rescued a captive Derelict 12468 | -5/Extension | Rescued a captive Derelict 12478 | -5/Extension | Rescued a captive Derelict 12528 | -5/Extension | Rescued a captive Derelict 12589 | -5/Extension | Rescued a captive Derelict 12590 | -5/Extension | Rescued a captive Derelict 12689 | -5/Extension | Rescued a captive Derelict 12690 | -5/Extension | Rescued a captive Derelict 12760 | -5/Extension | Lost 5 allies 13245 | -5/Extension | Spotted B-75 Beast 13260 | -5/Extension | Allies destroyed B-75 Beast 13267 | -5/Extension | Spotted B-75 Beast 13274 | -5/Extension | First assault squad dispatched 13296 | -5/Extension | Destroyed B-75 Beast 13327 | -5/Extension | Lost 6 allies 13397 | -5/Extension | Rescued a captive Derelict 13398 | -5/Extension | Rescued a captive Derelict 13416 | -5/Extension | Rescued a captive Derelict 13418 | -5/Extension | Rescued a captive Derelict 13476 | -5/Extension | Rescued A7 13604 | -5/Extension | High security lockdown imminent 13666 | -5/Extension | Discovered new exit (range 10) 13666 | -5/Extension | Discovered new exit (range 6) 13681 | -5/Extension | Identified exit to Cetus 13684 | -5/Extension | High security lockdown engaged 13699 | -5/Extension | Entered Cetus 13699 | -5/Cetus | Accompanied by 6 allies (A7) 13704 | -5/Cetus | Acquired a Cetus Manufacturing Module code from A7 13705 | -5/Cetus | Spotted Cetus Guard 13705 | -5/Cetus | Spotted Cetus Guard 13705 | -5/Cetus | Spotted Cetus Guard 13705 | -5/Cetus | Spotted Cetus Guard 13708 | -5/Cetus | Destroyed Cetus Guard 13723 | -5/Cetus | Allies destroyed Cetus Guard 13724 | -5/Cetus | Destroyed Cetus Guard 13728 | -5/Cetus | Allies destroyed Cetus Guard 13751 | -5/Cetus | Lost 7 allies 13757 | -5/Cetus | Lost 3 parts (2n1w) 13838 | -5/Cetus | Started Cetus Manufacturing Module 13863 | -5/Cetus | Manufactured an Enhanced Grunt 13888 | -5/Cetus | Manufactured an Enhanced Grunt 13913 | -5/Cetus | Manufactured an Enhanced Grunt 13919 | -5/Cetus | Discovered new exit (range 21) 13938 | -5/Cetus | Manufactured an Enhanced Grunt 13963 | -5/Cetus | Manufactured an Enhanced Grunt 14031 | -5/Cetus | Found Prototype Device 14031 | -5/Cetus | Identified Exp. Thermal Shield 14302 | -5/Cetus | Spotted Cetus Guard 14304 | -5/Cetus | Spotted Cetus Guard 14304 | -5/Cetus | Spotted Cetus Guard 14307 | -5/Cetus | Spotted Cetus Guard 14318 | -5/Cetus | Discovered new exit (range 22) 14322 | -5/Cetus | Allies destroyed Cetus Guard 14326 | -5/Cetus | Allies destroyed Cetus Guard 14328 | -5/Cetus | Allies destroyed Cetus Guard 14330 | -5/Cetus | Allies destroyed Cetus Guard 14368 | -5/Cetus | Met Revision 17 14381 | -5/Cetus | Identified exit to Factory 14512 | -5/Cetus | Entered Factory 14512 | -4/Factory | Accompanied by 5 allies (A7) 14512 | -4/Factory | Evolved 2 slots: Propulsion x1, Utility x1 15012 | -4/Factory | First assault squad dispatched 15045 | -4/Factory | Spotted B-86 Titan 15163 | -4/Factory | Core integrity fell below 50% 15197 | -4/Factory | Lost 6 parts (1p4n1u) 15204 | -4/Factory | Identified exit to Upper Caves 15403 | -4/Factory | Build established: Scavenger-Sprinter 15530 | -4/Factory | Cargo convoy interrupted 15550 | -4/Factory | Destroyed 7 combat bots 15557 | -4/Factory | Core integrity fell below 20% 15591 | -4/Factory | Entered Upper Caves 15600 | -4/Upper Caves | Met a Warlord Commander 15600 | -4/Upper Caves | Lost 3 parts (2p1u) 15602 | -4/Upper Caves | Warlord Commander delivered Encrypted Comm Array 15606 | -4/Upper Caves | Found Encrypted Comm Array 15676 | -4/Upper Caves | Found Alien Artifact 15869 | -4/Upper Caves | Attracted the attention of an 0b10 checkpoint 15878 | -4/Upper Caves | Discovered new exit (range 11) 15881 | -4/Upper Caves | Identified exit to Upper Caves 15882 | -4/Upper Caves | Entered another Upper Caves area 15882 | -4/Upper Caves | Discovered new exit (range 14) 15904 | -4/Upper Caves | Build established: Scavenger-Mutant 16001 | -4/Upper Caves | Spotted B-86 Titan 16139 | -4/Upper Caves | Discovered new exit (range 10) 16141 | -4/Upper Caves | Identified exit to Zhirov 16142 | -4/Upper Caves | Entered Zhirov 16142 | -4/Zhirov | Discovered new exit (range 3) 16155 | -4/Zhirov | Found Alien Artifact 16155 | -4/Zhirov | Identified Integrated Reactor 16155 | -4/Zhirov | Installed Integrated Reactor, increased core energy generation (+10) 16174 | -4/Zhirov | Found Alien Artifact 16189 | -4/Zhirov | Learned location of Quarantine (-2) 16189 | -4/Zhirov | Learned location of Testing (-3) 16189 | -4/Zhirov | Learned location of Command (-1) 16218 | -4/Zhirov | Identified exit to Proximity Caves 16218 | -4/Zhirov | Entered Proximity Caves 16221 | -3/Proximity Caves | Spotter reported a threat 16221 | -3/Proximity Caves | Spotter reported a threat 16274 | -3/Proximity Caves | Spotter reported a threat 16305 | -3/Proximity Caves | Snuck into a huge 0b10 base via the rear entrance 16306 | -3/Proximity Caves | Identified Transdimensional Reconstructor 16306 | -3/Proximity Caves | Warped through subspace 16422 | -3/Proximity Caves | Build established: Hacker-Sprinter 16425 | -3/Proximity Caves | Discovered new exit (range 3) 16425 | -3/Proximity Caves | Identified exit to Research 16426 | -3/Proximity Caves | Entered Research 16426 | -3/Research | Evolved 2 slots: Utility x2 16459 | -3/Research | Joined by Warlord Geek squad 16522 | -3/Research | Joined by Warlord Ghost squad 16553 | -3/Research | Lost 3 allies 16568 | -3/Research | Lost 7 parts (5n1u1w) 16626 | -3/Research | Revision forces began assault on 0b10 16681 | -3/Research | Joined by Warlord Pyro squad 16695 | -3/Research | P-80 Master assimilated allied 8R-S5E(i) 16741 | -3/Research | Met up with Revision 17++ 16870 | -3/Research | Discovered new exit (range 14) 16942 | -3/Research | Identified exit to Armory 17005 | -3/Research | Build established: Hacker-Mutant 17012 | -3/Research | Lost 4 parts (2n1u1w) 17126 | -3/Research | Research terminal network offline 17161 | -3/Research | Lost 9 parts (1p6n2u) 17192 | -3/Research | Discovered new exit (range 6) 17194 | -3/Research | Identified exit to Testing 17200 | -3/Research | Entered Testing 17201 | -3/Testing | Maximum security lockdown engaged 17215 | -3/Testing | Found Prototype Energy Cannon 17215 | -3/Testing | Identified Null Cannon 17245 | -3/Testing | Found Prototype Processor 17245 | -3/Testing | Identified Spectral Analyzer 17254 | -3/Testing | Found Prototype Ballistic Gun 17254 | -3/Testing | Identified Hyp. Multirail 17257 | -3/Testing | Lost 3 parts (2n1u) 17285 | -3/Testing | Spotted PH-NWYZNS9WCZ 17289 | -3/Testing | Rewired PH-NWYZNS9WCZ 17404 | -3/Testing | Found Prototype Processor 17404 | -3/Testing | Identified Exp. Target Analyzer 17420 | -3/Testing | Spotted Executioner 17434 | -3/Testing | Spotted Executioner 17434 | -3/Testing | Spotted Executioner 17435 | -3/Testing | Core integrity fell below 50% 17441 | -3/Testing | Discovered new exit (range 18) 17448 | -3/Testing | Core integrity fell below 20% 17451 | -3/Testing | Identified exit to Research 17452 | -3/Testing | Entered Research 17452 | -2/Research | Evolved 2 slots: Utility x2 17478 | -2/Research | Lost 10 parts (1p5n4u) 17502 | -2/Research | Spotted B-90 Cyclops 17659 | -2/Research | Found Prototype Launcher 17659 | -2/Research | Identified Hellfire Missile Launcher 17662 | -2/Research | Found Hellfire Missile Launcher 17702 | -2/Research | First assault squad dispatched 17703 | -2/Research | Build established: Mutant 17816 | -2/Research | Found Prototype Processor 17816 | -2/Research | Identified Exp. Signal Interpreter 17854 | -2/Research | Repaired Impulse Thruster Array 17865 | -2/Research | Found Prototype Processor 17865 | -2/Research | Identified Exp. Core Analyzer 17988 | -2/Research | Identified Dimensional Node Initializer 18208 | -2/Research | Lost 3 parts (1n2u) 18379 | -2/Research | Discovered new exit (range 2) 18380 | -2/Research | Identified exit to Access 18396 | -2/Research | Spotted B-90 Cyclops 18442 | -2/Research | Identified exit to Quarantine 18455 | -2/Research | Spotted B-90 Cyclops 18508 | -2/Research | Lost 3 parts (2n1u) 18552 | -2/Research | Found Gamma Bomb Array 18615 | -2/Research | High security lockdown imminent 18621 | -2/Research | Entered Quarantine 18622 | -2/Quarantine | Maximum security lockdown engaged 18641 | -2/Quarantine | Build established: Hacker-Mutant 18646 | -2/Quarantine | Lost 3 parts (1p1u1w) 18651 | -2/Quarantine | Found Alien Artifact 18651 | -2/Quarantine | Identified Subatomic Replicator 18732 | -2/Quarantine | Found Alien Artifact 18732 | -2/Quarantine | Identified Hpw. Transdimensional Reconstructor 18732 | -2/Quarantine | Warped through subspace 18733 | -2/Quarantine | Core integrity fell below 50% 18753 | -2/Quarantine | Initialized slip node 18792 | -2/Quarantine | Found Hpw. Transdimensional Reconstructor 18794 | -2/Quarantine | Found Hpw. Transdimensional Reconstructor 18799 | -2/Quarantine | Found Hpw. Transdimensional Reconstructor 18799 | -2/Quarantine | Warped through subspace to slip node 18852 | -2/Quarantine | Spotted Striker 18854 | -2/Quarantine | Core integrity fell below 20% 18865 | -2/Quarantine | Warped through subspace to slip node 18891 | -2/Quarantine | Lost 4 parts (2n1u1w) 18907 | -2/Quarantine | Found Prototype Device 18907 | -2/Quarantine | Identified Exp. Transmission Jammer 18966 | -2/Quarantine | Spotted Alpha 7 19021 | -2/Quarantine | Warped through subspace to slip node 19068 | -2/Quarantine | Destroyed by P-80 Master with Gamma Rifle Last Messages --------------- 18937_ Acquired Imp. Antigrav System. 18942_ Acquired Adv. System Shield. 18967_ WZR&LXMOTKQGDVRXFVRE11<#>R3Q7/4LY6>=YNJQ 18969_ Alpha 7 springs to life. 18969_ Critical hit (Destroy). 18969_ Broken Adv. Transmission Jammer destroyed. 18969_ Penetrated by Slug. 18969_ Slug penetrates Wall. 18972_ ALERT: Heavy assault forces dispatched. 18997_ System corrupted: Heat flow error (+174). 19004_ Acquired Adv. Power Amplifier. 19008_ Acquired Adv. Phase Shifter. 19021_ Warped through subspace, drawn to slip node. 19050_ C-30 ARC bursts open, deploying its payload. 19050_ B-74 Champion unfolds itself. 19050_ L-61 Swordsman unfolds itself. 19050_ G-73 Enforcer unfolds itself. 19068_ C-30 ARC bursts open, deploying its payload. 19068_ P-80 Master unfolds itself. 19068_ E-15 Imp unfolds itself. Map ----- +----------------------------------------------------+ | ?????????# #?????#"""#?????????# | | ??????#### #?????#####?????????# """ | | ??????# #???????????????????# """" " | | ??????# ####???????????????????# """ | | ??????# #??????????????????????# " | | ??????# #??????????????????????# | | ?????? ???????????????#??????# | | ?????? ?????????????? #??????######## | | ?????? ???###########+##????######## | | ?????? ???# #????#!!"" # | | ????? ??# " #????#!"" # | | ?????# #??# "" #????#"" / | | ?????# #??# "" #????#" # | | ???p? #??# "" #????#"" # | | ???p? #??# " #????#!" # | | ???p? Y #??# "" #????# " # | | ?????# ???# "" #????######## | | ?????? Y???# "" #???????????# | | ?????? Y ???# " #???????????# | | ????????????# #???????????## | | ????????????# #????????????? | | ????????????##+####+################??? | | ?????????????+ p #### | | ?????????????# p%p # | | ?????????????# eg x # | | ?????????????#@ g l x # | | ?????????????# ##########C##### #### | | ?????????????# #????????# #???# #??? | | ?????????????# #????#####+##### #### | | ???????????###+####?# b # | | ???????????# #?# # | | ???????????# """ #?# """" # | | ???????????# """ #?# ""* "+% | | ???????????# """ #?# """" # ###+ | | ???????????# #?# " "" # # | | ???????????# = * #?# "" # # "" | | ???????????########?# # # "" | | ????????????????????########### # | | ??????????????????????????????# # "" | | ??????????????????????????????# # "" | | ??????????????????????????????# # "" | | ??????????????????????????????# # ?? | | ????????????????????########### #### | | ????????????????????# | | ????????????????????# #### | | ????????????????????# #??? | | ????????????????????# #??? | | ????????????????????############+###### | | ??????????????????????????# | | ??????????????????????????# | +----------------------------------------------------+ Best States ------------- Heat Dissipation 81 Energy Generation 47 Energy Capacity 350 Matter Stores 300 Matter Capacity 300 Sight Range 22 Robot Scan Range 20 Terrain Scan Range 16 Terrain Scan Density 85 Jamming Range 22 Cloak Strength 3 Power Amplification 60 Additional Mass Support 9 Corruption Block 60 Armor Coverage 675 Resistance: KI 30 Resistance: EX 25 Core Shielding 40 Utility Shielding 66 Point Defense Rating 80 Phase Shifting 15 Evasion (%) 75 Targeting Accuracy 15 Launcher Accuracy 40 Target Analysis 14 Core Analysis 6 Armor Integrity Analysis 40 Matter Filtering 30 Energy Filtering 30 Particle Charging 30 Kinecelleration 40 Salvage Targeting 2 Offensive Hacking 53 Defensive Hacking 28 Item Schematics ----------------- Chainsword | -7/Zion | Archive Arc Thrower | -7/Zion | Archive Energy Well | -7/Zion | Archive Hvy. Missile Launcher | -7/Zion | Archive Adv. Sensor Array | -7/Zion | Archive Mak. Terrain Scan Processor | -7/Zion | Archive Imp. Dynamic Insulation System | -7/Zion | Archive Transmission Jammer | -7/Zion | Archive Kinecellerator | -7/Zion | Archive Thermic Laser | -7/Zion | Archive Arc Projector | -7/Zion | Archive Power Amplifier | -7/Zion | Archive Weapon Cycler | -7/Zion | Archive Imp. Shock Absorption System | -7/Zion | Archive HERF Cannon | -7/Zion | Archive KE Penetrator | -6/Factory | Hacked Micro-nuke Launcher | -6/Factory | Scanalyzed Assault Drone Bay | -4/Zhirov | Free Exp. Heat Sink | -4/Zhirov | Free Exp. Optical Array | -4/Zhirov | Free Imp. Arc Thrower | -4/Zhirov | Free Robot Schematics ------------------ O-16 Technician | -9/Materials | Hacked C-17 Slicer | -8/Materials | Hacked T-07 Excavator | -7/Zion | Archive S-27 Virus | -7/Zion | Archive R-06 Scavenger | -7/Zion | Archive Fabricated ------------ S-27 Virus | x4 | -7/Factory | Preloaded C-17 Slicer | x3 | -7/Factory C-17 Slicer | x3 | -6/Factory C-17 Slicer | x3 | -6/Factory Micro-nuke Launcher | x1 | -6/Factory | Preloaded S-27 Virus | x4 | -6/Factory Alien Tech Used ----------------- Integrated Reactor Transdimensional Reconstructor Subatomic Replicator High-powered Transdimensional Reconstructor Dimensional Node Initializer Achievements -------------- Revolutionary Research Challenges ------------ None Game ------ Seed GuidanceMobileShockpuncher Manual? 0 Play Time 06:19:26 Cumulative 143.6 hours Start 2024.03.12 @ 04:09:13 End 2024.03.12 @ 10:35:24 Sessions 1 Manual Loads 0 Difficulty Rogue Special Mode None Game No. 74 Rogue 74 Adventurer 0 Explorer 0 Win Type - Total 0 Types 0/0/0/0/0/0/0/0/0 Lore% 56 Gallery% 61 Achievement% 53 Wizard Run 0 Options --------- Layout 0 ASCII 0 Keyboard 1 Movement Arrows Keybinds 0 Fullscreen 1 Font 12/Smallcaps Map View 83x54 Zoom Use 0% Tactical HUD 1 Map Filters NONE Filters NONE Steam 0 RUN: 6af2cd99-3e8e-409a-9049-5a7414b87ce4